bitfinex/quotes_SOLUSD_20250313
["timestamp","ask_amount","ask_price","bid_price","bid_amount"]
[1741881330333,7.6836,124.46,124.42,22.70033444]
[1741881330919,7.6836,124.46,124.43,22.70033444]
[1741881331336,7.6836,124.46,124.4,0.03]
[1741881331542,7.6836,124.46,124.44,22.70033444]
[1741881331937,0.063,124.48,124.45,22.70033444]
[1741881332142,0.063,124.48,124.47,30.73433444]
[1741881332836,0.063,124.48,124.47,31.01865758]
[1741881333433,0.063,124.48,124.47,312.0]
[1741881333668,0.063,124.48,124.46,22.70033444]
[1741881334238,0.063,124.48,124.44,22.70033444]
[1741881334433,22.76333444,124.48,124.43,22.70033444]
[1741881336849,8.0966,124.48,124.44,22.70033444]
[1741881337036,0.063,124.48,124.45,22.70033444]
[1741881337347,0.063,124.48,124.46,22.70033444]
[1741881338046,0.063,124.48,124.45,22.70033444]
[1741881339050,0.063,124.48,124.46,22.70033444]
[1741881339230,0.063,124.48,124.45,22.70033444]
[1741881342246,0.063,124.48,124.46,22.70033444]
[1741881342452,0.063,124.48,124.47,22.70033444]
[1741881342827,0.063,124.48,124.47,22.98465758]
[1741881343131,0.063,124.48,124.47,31.20465758]
[1741881343328,0.063,124.48,124.47,343.20465758]
[1741881344358,0.063,124.48,124.47,351.23865758]
[1741881344558,0.063,124.48,124.47,342.92033444]
[1741881344734,0.063,124.48,124.47,30.92033444]
[1741881344934,0.063,124.48,124.47,8.22]
[1741881345346,0.063,124.48,124.47,30.92033444]
[1741881346062,0.063,124.48,124.47,22.70033444]
[1741881346747,0.063,124.48,124.47,30.73433444]
[1741881347265,0.063,124.48,124.47,22.70033444]
[1741881347735,0.063,124.48,124.46,22.70033444]
[1741881347937,0.063,124.48,124.47,22.70033444]
[1741881348149,0.063,124.48,124.47,22.98465758]
[1741881348745,0.063,124.48,124.47,31.01865758]
[1741881348966,0.063,124.48,124.47,49.66830644]
[1741881350366,0.063,124.48,124.47,31.01865758]
[1741881350537,0.063,124.48,124.47,22.70033444]
[1741881351057,0.063,124.48,124.47,31.01865758]
[1741881355059,0.063,124.48,124.47,22.98465758]
[1741881356167,0.063,124.48,124.47,31.01865758]
[1741881357251,0.063,124.48,124.47,49.66830644]
[1741881358563,0.063,124.49,124.48,0.28432314]
[1741881358855,0.063,124.49,124.48,24.18901919]
[1741881359066,0.063,124.51,124.49,18.64964886]
[1741881359243,0.063,124.51,124.5,53.60066888]
[1741881359442,0.063,124.51,124.5,365.60066888]
[1741881359642,0.063,124.55,124.51,68.933972]
[1741881359849,0.063,124.55,124.54,22.70033444]
[1741881360359,0.063,124.55,124.54,22.98465758]
[1741881360547,0.063,124.55,124.53,0.14216157]
[1741881360751,0.063,124.55,124.53,22.98465758]
[1741881360958,0.063,124.55,124.54,22.70033444]
[1741881361758,0.063,124.55,124.53,22.70033444]
[1741881361960,0.063,124.55,124.5,8.34216157]
[1741881362160,0.063,124.55,124.51,22.70033444]
[1741881362354,0.063,124.55,124.53,22.70033444]
[1741881362860,0.063,124.55,124.52,22.70033444]
[1741881363059,8.0919,124.55,124.52,22.70033444]
[1741881363255,8.0919,124.55,124.51,22.70033444]
[1741881363759,30.79223444,124.55,124.49,8.2]
[1741881363964,30.79223444,124.55,124.48,56.56148909]
[1741881363965,24.22083444,124.53,124.48,78.97750039]
[1741881364149,28.93293444,124.51,124.46,22.70033444]
[1741881364460,6.2326,124.51,124.48,22.70033444]
[1741881364839,6.2326,124.51,124.49,22.70033444]
[1741881365955,14.2641,124.51,124.47,22.70033444]
[1741881366559,36.96443444,124.51,124.46,22.70033444]
[1741881366965,36.96443444,124.51,124.43,22.70033444]
[1741881366966,42.70033444,124.48,124.43,22.70033444]
[1741881367144,22.70033444,124.44,124.42,0.063]
[1741881367561,29.29843444,124.45,124.42,0.063]
[1741881368374,42.95791637,124.45,124.42,0.063]
[1741881369271,7.9417,124.48,124.44,36.35981637]
[1741881369866,52.33491637,124.48,124.43,36.35981637]
[1741881370063,36.35981637,124.47,124.42,36.42281637]
[1741881371471,44.39401637,124.47,124.42,0.063]
[1741881371647,36.35981637,124.47,124.42,36.42281637]
[1741881371949,36.35981637,124.46,124.42,0.063]
[1741881372271,36.35981637,124.45,124.42,0.063]
[1741881372647,56.54326523,124.43,124.42,0.063]
[1741881372852,8.0524,124.43,124.42,0.063]
[1741881373868,1.5338,124.43,124.42,0.063]
[1741881376766,45.93021637,124.43,124.42,0.063]
[1741881376968,64.57986523,124.43,124.42,0.063]
[1741881378754,1.5338,124.43,124.42,0.063]
[1741881379463,6.4178,124.46,124.42,36.42281637]
[1741881379664,6.4178,124.46,124.43,36.35981637]
[1741881379969,1.6624,124.47,124.43,36.35981637]
[1741881380166,6.2027,124.49,124.45,36.35981637]
[1741881380552,1.6353,124.51,124.48,36.35981637]
[1741881380758,6.2027,124.52,124.49,36.35981637]
[1741881380954,1.6983,124.55,124.5,36.35981637]
[1741881381268,38.05811637,124.55,124.5,36.35981637]
[1741881382054,46.08711637,124.55,124.5,36.35981637]
[1741881382656,36.35981637,124.54,124.49,36.35981637]
[1741881383078,46.08711637,124.55,124.5,36.35981637]
[1741881384168,9.7273,124.55,124.5,36.35981637]
[1741881384680,36.35981637,124.54,124.49,44.55981637]
[1741881385058,36.35981637,124.52,124.47,36.35981637]
[1741881385384,36.35981637,124.51,124.46,36.35981637]
[1741881385960,36.35981637,124.48,124.45,8.2]
[1741881386187,36.35981637,124.48,124.43,36.35981637]
[1741881386675,36.35981637,124.46,124.42,0.063]
[1741881386873,18.64964886,124.48,124.42,36.42281637]
[1741881386874,36.35981637,124.47,124.42,36.42281637]
[1741881387074,36.35981637,124.47,124.42,0.063]
[1741881387272,36.35981637,124.47,124.42,36.42281637]
[1741881388067,8.0347,124.46,124.42,36.42281637]
[1741881389184,62.52341637,124.49,124.43,36.35981637]
[1741881389376,8.0334,124.48,124.44,36.35981637]
[1741881390164,44.39321637,124.48,124.43,36.35981637]
[1741881390666,44.39321637,124.48,124.42,36.42281637]
[1741881390866,36.35981637,124.47,124.42,36.42281637]
[1741881391169,36.35981637,124.46,124.42,0.063]
[1741881391489,36.35981637,124.45,124.42,0.063]
[1741881391674,36.35981637,124.46,124.42,0.063]
[1741881391875,36.35981637,124.47,124.42,0.063]
[1741881392076,36.35981637,124.47,124.42,36.42281637]
[1741881392382,8.0347,124.46,124.42,36.42281637]
[1741881392581,8.0347,124.46,124.42,0.063]
[1741881392778,8.0347,124.46,124.42,36.42281637]
[1741881395573,8.0343,124.47,124.42,44.46001637]
[1741881395771,9.6997,124.48,124.44,36.35981637]
[1741881395985,46.05951637,124.48,124.43,36.35981637]
[1741881396297,46.05951637,124.48,124.42,36.42281637]
[1741881396669,46.05951637,124.48,124.43,36.35981637]
[1741881397974,9.6997,124.48,124.43,36.35981637]
[1741881398394,46.05951637,124.48,124.43,36.35981637]
[1741881398586,36.35981637,124.46,124.42,0.063]
[1741881398782,36.35981637,124.45,124.42,0.063]
[1741881399005,36.35981637,124.44,124.42,0.063]
[1741881400073,36.35981637,124.45,124.42,0.063]
[1741881400702,44.39581637,124.44,124.42,0.063]
[1741881400904,55.00946523,124.43,124.42,0.063]
[1741881402705,44.39641637,124.43,124.42,0.063]
[1741881403197,8.0366,124.43,124.42,0.063]
[1741881403386,44.39621637,124.44,124.42,0.063]
[1741881403587,8.0364,124.44,124.42,0.063]
[1741881403998,8.0355,124.45,124.42,0.063]
[1741881404191,44.39471637,124.46,124.42,0.063]
[1741881406198,90.8341,124.47,124.43,36.35981637]
[1741881406884,55.00946523,124.46,124.42,0.063]
[1741881407083,36.35981637,124.45,124.42,0.063]
[1741881407597,55.00946523,124.46,124.42,0.063]
[1741881407796,18.64964886,124.46,124.42,0.063]
[1741881407985,90.8341,124.47,124.42,36.42281637]
[1741881408478,8.0341,124.47,124.43,36.35981637]
[1741881408685,42.44151637,124.49,124.44,36.35981637]
[1741881408985,8.0328,124.49,124.45,36.35981637]
[1741881409191,8.0328,124.49,124.44,36.35981637]
[1741881409480,8.0328,124.49,124.45,36.35981637]
[1741881409799,8.0323,124.5,124.46,36.35981637]
[1741881409998,8.0323,124.5,124.45,36.35981637]
[1741881410600,36.35981637,124.49,124.44,36.42281637]
[1741881410791,64.47241637,124.5,124.44,36.42281637]
[1741881411306,36.35981637,124.49,124.44,36.42281637]
[1741881411483,64.47241637,124.5,124.44,36.42281637]
[1741881411808,44.39211637,124.5,124.45,36.35981637]
[1741881412477,8.0323,124.5,124.46,36.35981637]
[1741881413899,9.5564,124.51,124.46,44.39441637]
[1741881414103,0.03,124.52,124.47,36.35981637]
[1741881414301,0.03,124.52,124.49,36.35981637]
[1741881415399,8.061,124.52,124.48,36.35981637]
[1741881416404,0.03,124.52,124.49,0.28432314]
[1741881416582,0.03,124.52,124.51,56.35981637]
[1741881416779,0.03,124.52,124.51,75.29378837]
[1741881417196,0.063,124.55,124.52,18.933972]
[1741881417396,0.063,124.55,124.54,36.35981637]
[1741881418205,0.063,124.55,124.54,44.38931637]
[1741881419598,0.063,124.55,124.54,356.38931637]
[1741881419911,0.063,124.55,124.54,348.35981637]
[1741881420118,0.063,124.55,124.54,312.0]
[1741881420410,0.063,124.55,124.54,36.35981637]
[1741881420810,0.063,124.55,124.54,36.64413951]
[1741881421020,0.063,124.55,124.54,36.35981637]
[1741881422390,0.063,124.55,124.54,44.53981637]
[1741881422991,0.063,124.55,124.54,52.56931637]
[1741881423217,0.063,124.55,124.54,44.53981637]
[1741881426617,0.063,124.55,124.54,36.35981637]
[1741881427118,0.063,124.55,124.54,44.38931637]
[1741881427420,0.063,124.55,124.54,36.35981637]
[1741881431912,0.063,124.55,124.54,44.67363951]
[1741881432712,0.063,124.55,124.54,100.88714511]
[1741881433098,0.063,124.55,124.54,64.52732874]
[1741881433599,0.063,124.55,124.54,44.67363951]
[1741881435019,0.063,124.55,124.54,356.67363951]
[1741881435538,0.063,124.55,124.54,20.28432314]
[1741881435703,0.063,124.55,124.54,56.64413951]
[1741881436721,0.063,124.55,124.54,36.35981637]
[1741881437521,0.063,124.55,124.53,8.18]
[1741881437727,36.42281637,124.55,124.5,36.35981637]
[1741881438221,36.42281637,124.55,124.48,220.68]
[1741881438222,36.35981637,124.54,124.49,36.35981637]
[1741881438405,36.35981637,124.53,124.48,248.85981637]
[1741881439721,36.42281637,124.55,124.5,36.35981637]
[1741881439920,8.0295,124.54,124.51,36.35981637]
[1741881440420,8.0921,124.55,124.52,36.35981637]
[1741881441110,8.0921,124.55,124.51,36.35981637]
[1741881441722,36.35981637,124.54,124.49,36.35981637]
[1741881442619,36.35981637,124.53,124.47,44.53981637]
[1741881442807,36.35981637,124.53,124.48,36.35981637]
[1741881443221,36.35981637,124.52,124.47,8.18]
[1741881443432,36.35981637,124.52,124.47,44.53981637]
[1741881443608,36.35981637,124.53,124.48,36.35981637]
[1741881444021,8.0308,124.52,124.48,36.35981637]
[1741881444736,9.5565,124.52,124.48,36.35981637]
[1741881445113,9.5565,124.52,124.48,36.42281637]
[1741881445925,9.5565,124.52,124.48,0.063]
[1741881446110,42.86671637,124.51,124.48,0.063]
[1741881447205,6.5069,124.51,124.48,0.063]
[1741881447707,29.6335,124.52,124.48,36.42281637]
[1741881448126,1.5257,124.52,124.5,36.35981637]
[1741881448510,6.5249,124.54,124.51,36.35981637]
[1741881449119,6.5249,124.54,124.52,36.35981637]
[1741881449427,0.063,124.55,124.51,36.35981637]
[1741881450127,8.0919,124.55,124.51,36.35981637]
[1741881450334,0.063,124.55,124.52,36.35981637]
[1741881450523,0.063,124.55,124.49,8.46432314]
[1741881450713,0.063,124.55,124.51,36.35981637]
[1741881450914,0.063,124.55,124.52,36.35981637]
[1741881451117,36.42281637,124.55,124.5,36.35981637]
[1741881452322,44.38931637,124.54,124.49,356.53981637]
[1741881452517,36.35981637,124.53,124.49,8.18]
[1741881452723,36.35981637,124.51,124.48,0.063]
[1741881453117,36.35981637,124.52,124.48,0.063]
[1741881454021,28.1033,124.54,124.48,36.42281637]
[1741881454022,64.46311637,124.54,124.48,36.42281637]
[1741881454430,64.46311637,124.54,124.48,44.45621637]
[1741881454817,64.46311637,124.54,124.49,36.35981637]
[1741881455229,36.35981637,124.53,124.48,36.42281637]
[1741881456017,64.46311637,124.54,124.48,36.42281637]
[1741881456214,0.063,124.55,124.5,36.35981637]
[1741881456418,8.0922,124.55,124.52,36.35981637]
[1741881457638,8.0922,124.55,124.51,36.35981637]
[1741881458323,64.52421637,124.55,124.5,44.53981637]
[1741881458835,28.1644,124.55,124.5,44.53981637]
[1741881461620,36.35981637,124.54,124.5,8.18]
[1741881461946,36.35981637,124.54,124.49,36.35981637]
[1741881463253,36.35981637,124.53,124.48,8.243]
[1741881463542,8.0308,124.52,124.48,8.243]
[1741881463932,64.46761637,124.52,124.48,0.063]
[1741881464547,36.35981637,124.51,124.48,0.063]
[1741881464934,64.46761637,124.52,124.48,0.063]
[1741881466048,8.0308,124.52,124.48,36.42281637]
[1741881468162,8.0301,124.53,124.48,36.42281637]
[1741881468456,8.0301,124.53,124.49,36.35981637]
[1741881468833,20.0,124.53,124.51,36.35981637]
[1741881469040,20.0,124.53,124.5,36.35981637]
[1741881469624,20.0,124.53,124.49,44.51981637]
[1741881469856,20.0,124.53,124.5,36.35981637]
[1741881470037,8.0295,124.54,124.5,36.35981637]
[1741881470944,8.0295,124.54,124.52,36.35981637]
[1741881472028,8.0295,124.54,124.51,36.35981637]
[1741881472231,64.52391637,124.55,124.49,44.51981637]
[1741881472536,36.35981637,124.54,124.49,8.16]
[1741881472747,64.52391637,124.55,124.49,44.51981637]
[1741881473430,8.0919,124.55,124.51,36.35981637]
[1741881473625,0.063,124.55,124.53,36.35981637]
[1741881474032,0.063,124.55,124.5,0.14216157]
[1741881474244,0.063,124.55,124.52,36.35981637]
[1741881474446,0.063,124.55,124.51,36.35981637]
[1741881475051,0.063,124.55,124.5,36.35981637]
[1741881475235,36.42281637,124.55,124.5,36.35981637]
[1741881476449,8.0295,124.54,124.49,44.51981637]
[1741881476646,8.0295,124.54,124.5,36.35981637]
[1741881477856,8.0295,124.54,124.49,44.51981637]
[1741881478853,8.0295,124.54,124.5,36.35981637]
[1741881480255,28.1653,124.55,124.5,36.35981637]
[1741881480863,0.03,124.54,124.5,36.35981637]
[1741881481459,0.03,124.54,124.53,36.35981637]
[1741881483660,0.03,124.54,124.53,36.64413951]
[1741881483843,0.03,124.54,124.53,44.67423951]
[1741881486069,0.03,124.54,124.51,312.0]
[1741881486247,0.03,124.54,124.5,36.35981637]
[1741881488770,0.03,124.54,124.49,36.35981637]
[1741881488966,0.03,124.54,124.5,36.35981637]
[1741881489460,36.38981637,124.54,124.48,328.39836157]
[1741881489758,36.38981637,124.54,124.49,36.35981637]
[1741881489964,0.03,124.54,124.5,36.35981637]
[1741881490180,36.38981637,124.54,124.49,36.35981637]
[1741881490338,22.71975843,124.54,124.49,22.68975843]
[1741881490768,22.71975843,124.54,124.48,30.91275843]
[1741881491063,22.68975843,124.52,124.48,8.223]
[1741881491281,8.0301,124.53,124.48,30.91275843]
[1741881492262,8.0301,124.53,124.48,44.53082622]
[1741881492462,44.33792622,124.53,124.48,36.37082622]
[1741881492665,8.0301,124.53,124.48,36.37082622]
[1741881492864,8.0597,124.54,124.49,36.30782622]
[1741881493783,0.03,124.54,124.5,36.30782622]
[1741881493955,0.03,124.54,124.51,36.30782622]
[1741881494453,0.03,124.54,124.5,36.30782622]
[1741881495767,0.03,124.54,124.49,36.30782622]
[1741881495958,0.03,124.54,124.5,36.30782622]
[1741881497079,0.03,124.54,124.49,36.30782622]
[1741881497279,36.33782622,124.54,124.49,36.30782622]
[1741881497775,36.30782622,124.53,124.48,36.37082622]
[1741881497969,18.64964886,124.52,124.48,0.063]
[1741881498276,36.30782622,124.52,124.48,0.063]
[1741881498874,18.64964886,124.53,124.48,0.063]
[1741881498875,7.6859,124.49,124.48,0.063]
[1741881499264,1.6477,124.52,124.48,0.063]
[1741881499472,1.6477,124.52,124.49,36.30782622]
[1741881499655,90.8597,124.54,124.5,36.30782622]
[1741881499861,0.03,124.54,124.51,36.30782622]
[1741881500164,0.03,124.54,124.5,36.30782622]
[1741881500165,8.0595,124.54,124.5,36.30782622]
[1741881500368,18.64964886,124.53,124.5,36.30782622]
[1741881500878,0.03,124.54,124.5,36.30782622]
[1741881501179,0.03,124.54,124.51,36.30782622]
[1741881501379,0.03,124.54,124.52,36.30782622]
[1741881501380,18.67964886,124.54,124.52,36.30782622]
[1741881501973,18.67964886,124.54,124.53,36.30782622]
[1741881501974,0.03,124.54,124.53,36.30782622]
[1741881503787,0.03,124.54,124.52,44.46782622]
[1741881504468,0.03,124.54,124.53,36.30782622]
[1741881504987,0.063,124.55,124.53,36.30782622]
[1741881504988,0.063,124.55,124.54,0.28432314]
[1741881505167,0.063,124.55,124.54,74.1037388]
[1741881505374,0.063,124.55,124.54,82.1332388]
[1741881505576,0.063,124.55,124.54,45.82541258]
[1741881506486,0.063,124.55,124.54,44.62164936]
[1741881506889,0.063,124.55,124.54,45.82563597]
[1741881508386,0.063,124.55,124.54,52.37533597]
[1741881508589,0.063,124.55,124.54,364.37533597]
[1741881508791,0.063,124.55,124.54,363.17134936]
[1741881508985,0.063,124.55,124.54,348.59214936]
[1741881509182,0.063,124.55,124.54,36.59214936]
[1741881509792,0.063,124.55,124.54,44.62164936]
[1741881511393,0.063,124.55,124.54,36.59214936]
[1741881511768,0.063,124.55,124.54,44.62164936]
[1741881512079,0.063,124.55,124.54,36.59214936]
[1741881513291,0.063,124.55,124.54,44.62164936]
[1741881514490,0.063,124.55,124.54,30.97507383]
[1741881517483,0.063,124.55,124.54,31.03807383]
[1741881517668,0.063,124.55,124.54,54.90331401]
[1741881517870,0.063,124.61,124.54,54.90331401]
[1741881518073,0.063,124.61,124.6,22.66125069]
[1741881519779,0.063,124.61,124.59,22.66125069]
[1741881520481,0.063,124.61,124.6,22.66125069]
[1741881521179,0.063,124.61,124.59,22.66125069]
[1741881524975,0.063,124.61,124.6,22.66125069]
[1741881525880,0.063,124.61,124.59,22.66125069]
[1741881526383,0.063,124.61,124.55,20.071]
[1741881526384,0.063,124.61,124.54,0.20516157]
[1741881526591,22.72425069,124.61,124.55,22.66125069]
[1741881526895,22.72425069,124.61,124.56,22.66125069]
[1741881527188,18.64964886,124.6,124.56,22.66125069]
[1741881527395,18.71264886,124.61,124.56,22.66125069]
[1741881527891,18.71264886,124.61,124.55,8.0287]
[1741881527892,18.71264886,124.61,124.57,22.66125069]
[1741881528481,18.71264886,124.61,124.56,22.66125069]
[1741881528890,18.71264886,124.61,124.57,22.66125069]
[1741881529199,41.37389955,124.61,124.56,22.66125069]
[1741881529404,26.67524886,124.6,124.56,22.66125069]
[1741881530080,26.67524886,124.6,124.54,8.203]
[1741881530275,26.67524886,124.6,124.56,22.66125069]
[1741881530784,26.67524886,124.6,124.57,22.66125069]
[1741881535807,26.67524886,124.6,124.56,0.063]
[1741881535987,1.5787,124.59,124.56,0.063]
[1741881536484,1.5787,124.59,124.56,22.72425069]
[1741881536683,1.5787,124.59,124.56,0.063]
[1741881537298,1.5787,124.59,124.57,22.66125069]
[1741881537903,9.605,124.59,124.57,22.66125069]
[1741881538311,9.605,124.59,124.56,22.72425069]
[1741881538690,9.605,124.59,124.56,0.063]
[1741881539208,9.605,124.59,124.56,22.72425069]
[1741881539605,1.5787,124.59,124.56,22.72425069]
[1741881540285,0.063,124.61,124.58,22.66125069]
[1741881540493,0.063,124.61,124.6,22.66125069]
[1741881542100,0.063,124.61,124.6,30.68685069]
[1741881542296,0.063,124.61,124.6,14.49294507]
[1741881544008,0.063,124.61,124.59,334.63294507]
[1741881544406,0.063,124.61,124.59,342.79157056]
[1741881546704,0.063,124.61,124.6,22.65157056]
[1741881549325,0.063,124.61,124.59,22.65157056]
[1741881549895,0.063,124.61,124.58,22.9358937]
[1741881550099,0.063,124.61,124.59,22.65157056]
[1741881550803,0.063,124.61,124.57,8.12]
[1741881551016,0.063,124.61,124.58,22.65157056]
[1741881551219,0.063,124.61,124.59,22.65157056]
[1741881551419,0.063,124.61,124.58,22.65157056]
[1741881552300,0.063,124.61,124.59,22.65157056]
[1741881552716,0.063,124.61,124.58,22.65157056]
[1741881554007,0.063,124.61,124.58,30.67837056]
[1741881554207,0.063,124.61,124.58,22.65157056]
[1741881555927,0.063,124.61,124.56,0.063]
[1741881556116,22.65157056,124.58,124.56,0.063]
[1741881556509,1.5506,124.6,124.56,22.71457056]
[1741881556817,20.20024886,124.6,124.56,22.71457056]
[1741881557732,20.20024886,124.6,124.56,0.063]
[1741881557913,50.87801942,124.6,124.56,0.063]
[1741881558232,18.64964886,124.59,124.56,0.063]
[1741881559219,26.67594886,124.59,124.56,0.063]
[1741881560331,18.64964886,124.59,124.56,0.063]
[1741881560702,26.67604886,124.59,124.56,0.063]
[1741881561311,20.20024886,124.6,124.57,22.65157056]
[1741881562235,28.22594886,124.6,124.56,22.71457056]
[1741881562405,28.22594886,124.6,124.56,0.063]
[1741881562734,18.64964886,124.59,124.56,0.063]
[1741881563931,18.64964886,124.59,124.56,22.71457056]
[1741881564314,18.64964886,124.59,124.56,14.56737235]
[1741881565236,26.67604886,124.59,124.56,0.063]
[1741881565537,18.64964886,124.59,124.56,14.56737235]
[1741881567327,28.22614886,124.6,124.56,22.59547235]
[1741881567731,28.22614886,124.6,124.56,14.56737235]
[1741881567935,41.18062121,124.59,124.56,0.063]
[1741881568138,26.67624886,124.59,124.56,0.063]
[1741881569220,18.64964886,124.59,124.56,22.59547235]
[1741881569738,18.64964886,124.59,124.56,14.56737235]
[1741881569948,18.64964886,124.59,124.56,0.063]
[1741881570239,18.64964886,124.57,124.56,0.063]
[1741881572050,26.67724886,124.57,124.56,0.063]
[1741881572728,18.64964886,124.59,124.56,0.063]
[1741881574146,26.67654886,124.59,124.56,0.063]
[1741881575846,18.64964886,124.59,124.56,0.063]
[1741881576528,26.67604886,124.59,124.56,0.063]
[1741881578750,26.70604886,124.59,124.56,0.063]
[1741881578947,119.41563375,124.57,124.56,0.0001]
[1741881579150,18.64964886,124.56,124.54,0.063]
[1741881579353,33.15402121,124.55,124.54,0.063]
[1741881580354,41.18292121,124.55,124.54,0.0001]
[1741881580849,41.46724435,124.55,124.54,0.0001]
[1741881581453,47.46707487,124.55,124.54,0.0001]
[1741881582430,20.0,124.51,124.48,0.063]
[1741881582770,20.25384886,124.49,124.48,0.063]
[1741881584854,42.79092121,124.49,124.48,0.063]
[1741881586647,26.68044886,124.52,124.48,0.063]
[1741881586833,18.64964886,124.5,124.48,0.063]
[1741881587037,33.15402121,124.5,124.48,0.063]
[1741881587558,14.50437235,124.49,124.48,0.063]
[1741881588158,18.64964886,124.49,124.48,0.063]
[1741881588469,41.35596641,124.49,124.48,0.063]
[1741881588837,18.64964886,124.49,124.48,0.063]
[1741881589754,22.70631755,124.52,124.48,0.063]
[1741881589944,18.64964886,124.51,124.48,0.063]
[1741881590269,18.64964886,124.52,124.48,22.76931755]
[1741881590857,18.64964886,124.52,124.48,30.80231755]
[1741881591859,26.68044886,124.52,124.48,22.76931755]
[1741881592060,49.38676641,124.52,124.48,0.063]
[1741881592462,49.38676641,124.52,124.48,22.76931755]
[1741881592463,26.68044886,124.52,124.48,22.76931755]
[1741881592762,18.64964886,124.52,124.48,30.80261755]
[1741881592942,26.68054886,124.52,124.48,22.76931755]
[1741881593142,18.64964886,124.52,124.48,334.76931755]
[1741881593349,26.68054886,124.52,124.48,22.76931755]
[1741881593766,18.64964886,124.52,124.48,30.80261755]
[1741881593966,18.64964886,124.52,124.49,22.70631755]
[1741881594370,18.67964886,124.54,124.5,22.70631755]
[1741881594557,18.67964886,124.54,124.49,22.70631755]
[1741881594869,49.41546641,124.54,124.49,30.73871755]
[1741881595450,26.70914886,124.54,124.49,30.73871755]
[1741881595647,0.03,124.54,124.5,22.70631755]
[1741881595866,0.03,124.54,124.51,22.70631755]
[1741881596468,0.03,124.54,124.52,22.70631755]
[1741881596671,0.03,124.54,124.53,22.70631755]
[1741881596972,0.03,124.54,124.53,30.73641755]
[1741881597169,0.03,124.54,124.53,39.07514069]
[1741881598760,0.03,124.54,124.53,31.04504069]
[1741881599267,0.03,124.54,124.53,39.07514069]
[1741881600080,0.03,124.54,124.53,351.07514069]
[1741881600684,0.03,124.54,124.53,39.07514069]
[1741881603961,0.03,124.54,124.53,31.02074069]
[1741881604564,0.03,124.54,124.53,343.02074069]
[1741881604873,0.03,124.54,124.51,8.40432314]
[1741881605074,0.03,124.54,124.53,22.70631755]
[1741881605275,0.03,124.54,124.49,349.38]
[1741881605276,38.64964886,124.53,124.48,0.063]
[1741881605479,41.35596641,124.49,124.48,0.063]
[1741881605877,47.75526641,124.49,124.48,0.063]
[1741881606378,55.78796641,124.49,124.48,0.063]
[1741881606563,47.75526641,124.49,124.48,0.063]
[1741881607160,18.64964886,124.49,124.48,0.063]
[1741881607875,41.35596641,124.49,124.48,0.063]
[1741881608596,18.64964886,124.48,124.44,0.063]
[1741881608773,22.70631755,124.45,124.44,0.063]
[1741881608967,41.35596641,124.45,124.44,0.063]
[1741881609168,18.64964886,124.45,124.44,0.063]
[1741881611290,1.5374,124.49,124.44,22.76931755]
[1741881611461,24.24371755,124.49,124.44,22.76931755]
[1741881611962,18.64964886,124.48,124.44,22.76931755]
[1741881612274,30.80631755,124.51,124.46,22.70631755]
[1741881612468,18.64964886,124.5,124.44,8.163]
[1741881612661,0.14216157,124.46,124.44,0.063]
[1741881612869,41.35596641,124.45,124.44,0.063]
[1741881613493,49.17526641,124.45,124.44,0.063]
[1741881614603,57.21056641,124.45,124.44,0.063]
[1741881616299,80.2012071,124.45,124.44,0.063]
[1741881616479,49.17526641,124.45,124.44,0.063]
[1741881616679,18.64964886,124.45,124.44,0.063]
[1741881616879,18.64964886,124.47,124.44,0.063]
[1741881617994,15.7106,124.53,124.46,22.70631755]
[1741881618173,22.70631755,124.51,124.46,22.70631755]
[1741881618493,15.7106,124.53,124.47,22.70631755]
[1741881618494,22.70631755,124.52,124.47,22.70631755]
[1741881618668,22.70631755,124.51,124.45,30.74151755]
[1741881619069,18.64964886,124.5,124.45,8.0352]
[1741881619271,18.64964886,124.52,124.48,22.70631755]
[1741881619498,0.03,124.54,124.51,22.70631755]
[1741881619796,0.03,124.54,124.53,22.99064069]
[1741881620501,0.03,124.54,124.53,22.70631755]